{"text_format":"1","workbook":"xlsx","n_sheets":5,"sheets":["入力シート","申請書(サ)","インポートシート","リストシート","データチェック"],"not_rendered":{"charts":0,"images":0,"macros":1,"external_links":3,"defined_names":43,"comments":0,"pivot_tables":0},"unopened":[],"bounds":{"document_bytes":16777216,"sheet_cells":100000,"rows_first":2000,"rows_last":500,"rows_between":2000,"halvings":0,"cell_chars":16384,"cell_head_chars":4096},"cells_cut":0,"cells_raw":0,"read":"whole","date_system":"1900"}

{"sheet":"入力シート","index":0,"n_rows":30,"n_cols":5,"rows_kept":30,"cut":false,"hidden":false,"merged":[[26,0,27,0],[15,0,16,0],[24,0,25,0]]}
["「しずおかスポーツ人材バンク」サポーター登録申請書 入力シート"]
[null,"※色の欄に入力ください"]
[]
["No","項目","入力欄",null,"入力方法"]
[1,"氏名",null,null,"※文字入力"]
[2,"フリガナ",null,null,"※文字入力"]
[3,"性別",null,null,"※プルダウンから選択"]
[4,"生年（西暦）",null,null,"※「選択」ボタンを押下後、「生年」を選択"]
[5,"郵便番号",null,null,"※半角英数字入力"]
[6,"住所１（市区町）",null,null,"※文字入力"]
[7,"住所２（それ以降）",null,null,"※文字入力"]
[8,"住所３（それ以降）",null,null,"※文字入力"]
[9,"自宅電話番号",null,null,"※文字入力"]
[10,"携帯電話番号",null,null,"※文字入力"]
[11,"Ｅ-mailｱﾄﾞﾚｽ",null,null,"※文字入力"]
[12,"職業",null,null,"※プルダウンから選択"]
[null,"職業《その他》",null,null,"※プルダウンの選択項目に該当するものがない場合\n　 その他として、職業をご記入ください。\n※文字入力"]
[13,"勤務先",null,null,"※文字入力"]
[14,"主な所有資格",null,null,"※「選択」ボタンを押下後、該当する項目を選択"]
[15,"サポート内容",null,null,"※文字入力"]
[16,"サポート分野",null,null,"※「選択」ボタンを押下後、該当する項目を選択"]
[17,"サポートテーマ",null,null,"※「選択」ボタンを押下後、該当する項目を選択"]
[18,"可能対象",null,null,"※「選択」ボタンを押下後、該当する項目を選択"]
[19,"指導可能日時",null,null,"※指導が可能な時間帯にチェックをしてください。\n １：全日 ２：午前  ３：午後 ４：夜間"]
[20,"指導可能地域",null,null,"※プルダウンから選択"]
[null,"指導可能地域《その他》",null,null,"※選択項目に該当するものがない場合\n　 その他として、指導可能地域をご記入ください。\n※文字入力"]
[21,"報酬の希望等",null,null,"※プルダウンから選択"]
[null,"謝金を希望する場合\n1時間あたりの金額",null,null,"※半角数字入力"]
[22,"登録認定要件"]
[23,"情報公開への承諾"]

{"sheet":"申請書(サ)","index":1,"n_rows":33,"n_cols":13,"rows_kept":33,"cut":false,"hidden":false,"merged":[[22,0,23,0],[19,0,21,0],[23,4,23,12],[30,1,30,12],[31,1,31,12],[25,1,25,2],[19,1,19,2],[20,1,20,2],[20,6,20,7],[21,1,21,2],[21,6,21,7],[25,3,25,4],[25,5,25,6],[19,6,19,7],[32,1,32,12],[26,1,26,2],[27,1,27,12],[28,1,28,12],[29,1,29,12],[26,3,26,12],[18,1,18,2],[18,3,18,12],[22,1,22,2],[22,3,22,12],[24,1,24,2],[24,3,24,12],[16,1,16,2],[16,3,16,12],[17,1,17,2],[17,3,17,12],[11,1,11,2],[12,1,12,2],[14,1,14,2],[11,3,14,12],[7,1,7,2],[7,3,7,6],[7,8,7,9],[7,10,7,12],[8,1,8,2],[8,3,8,12],[6,3,6,6],[6,8,6,9],[6,10,6,12],[3,1,3,2],[3,3,3,6],[3,8,3,9],[3,10,3,12],[4,1,4,2],[4,3,4,6],[4,8,4,9],[4,10,4,12],[9,3,10,12],[9,1,10,2],[9,0,10,0],[0,0,0,1],[0,2,0,11],[2,1,2,2],[2,3,2,6],[2,8,2,9],[2,10,2,12],[1,8,1,9],[1,10,1,12],[5,1,5,2],[5,3,5,6],[5,8,5,9],[5,10,5,12],[6,1,6,2]]}
["取扱注意",null,"「しずおかスポーツ人材バンク」サポーター登録申請書"]
["提出日",null,null,"　　　　 年　　 月　　 日"]
[1,"氏名",null,{"$f":"入力シート!C5&\"\"","v":""},null,null,null,2,"フリガナ",null,{"$f":"入力シート!C6&\"\"","v":""}]
[3,"性別",null,{"$f":"入力シート!C7&\"\"","v":""},null,null,null,4,"生年（西暦）",null,{"$f":"入力シート!C8&\"\"","v":""}]
[5,"郵便番号",null,{"$f":"入力シート!C9&\"\"","v":""},null,null,null,6,"住所１（市区町）",null,{"$f":"入力シート!C10&\"\"","v":""}]
[7,"住所２（それ以降）",null,{"$f":"入力シート!C11&\"\"","v":""},null,null,null,8,"住所３（それ以降）",null,{"$f":"入力シート!C12&\"\"","v":""}]
[9,"自宅電話番号",null,{"$f":"入力シート!C13&\"\"","v":""},null,null,null,10,"携帯電話番号",null,{"$f":"入力シート!C14&\"\"","v":""}]
[11,"Ｅ-mailｱﾄﾞﾚｽ",null,{"$f":"入力シート!C15&\"\"","v":""},null,null,null,12,"職業",null,{"$f":"入力シート!C16&\" \"&入力シート!C17&\"\"","v":" "}]
[13,"勤務先",null,{"$f":"入力シート!C18&\"\"","v":""}]
[14,"主な所有資格",null,{"$f":"入力シート!C19&\"\"","v":""}]
[]
[15,"サポート内容",null,{"$f":"入力シート!C20&\"\"","v":""}]
[null,"講演の演題等"]
[]
[]
[]
[16,"サポート分野",null,{"$f":"入力シート!C21&\"\"","v":""}]
[17,"サポートテーマ",null,{"$f":"入力シート!C22&\"\"","v":""}]
[18,"対象",null,{"$f":"入力シート!C23&\"\"","v":""}]
[19,"可能日時",null,"月曜","火曜","水曜","木曜",null,"金曜","土曜","日曜","祝日","毎日"]
[null," １全日 ２午前"]
[null," ３午後 ４夜間"]
[20,"可能地域",null,{"$f":"入力シート!C25&\"\"","v":""}]
[null,null,null,"その他：",{"$f":"入力シート!C26&\"\"","v":""}]
[21,"報酬の希望等",null,{"$f":"入力シート!C27&\"\"","v":""}]
[null,null,null,"１時間あたり",null,{"$f":"入力シート!C28&\"\"","v":""},null,"円"]
[22,"登録認定要件",null,{"$f":"入力シート!C29&\"\"","v":""}]
[null,"　　このバンク登録申請書における個人情報は、個人情報の保護に関する法律(平成15年法律第57号)"]
[null,"　に従い、厳正に取り扱うと共に、指導者紹介依頼者とのマッチングにおいて、（公財）静岡県体育"]
[null,"　協会の職員が使用します。"]
[null,"　　HPへの掲載は、どのようにしますか。"]
[26,"　  番号 3,4,6,13,16(資格名のみ）,20～24の情報をHPに掲載することを承諾する。"]
[null,"　  HPへの掲載は、承諾しない。"]

{"sheet":"インポートシート","index":2,"n_rows":2,"n_cols":40,"rows_kept":2,"cut":false,"hidden":false,"merged":[]}
["認定番号","提出日","氏名","ふりがな","性別","生年","郵便番号","都道府県","住所１（市・区・町）","住所２（それ以降）","住所３（アパート等）","自宅電話番号","サポート分野","サポートテーマ","E-mailｱﾄﾞﾚｽ","携帯電話番号","職業","勤務先","主な所有資格","資格（記載）","サポート内容","指導対象","月曜","火曜","水曜","木曜","金曜","土曜","日曜","祝日","毎日","指導可能地域","地域（記載）","報酬","報酬（記載）","報酬TO","公認指導者番号","公認者指導者有効","登録認定要件","情報同意"]
[null,null,{"$f":"入力シート!C5&\"\"","v":""},{"$f":"入力シート!C6&\"\"","v":""},{"$f":"入力シート!C7&\"\"","v":""},null,{"$f":"入力シート!C9&\"\"","v":""},null,{"$f":"入力シート!C10&\"\"","v":""},{"$f":"入力シート!C11&\"\"","v":""},{"$f":"入力シート!C12&\"\"","v":""},{"$f":"入力シート!C13&\"\"","v":""},null,null,{"$f":"入力シート!C15&\"\"","v":""},{"$f":"入力シート!C14&\"\"","v":""},{"$f":"入力シート!C16&\" \"&入力シート!C17&\"\"","v":" "},{"$f":"入力シート!C17&\"\"","v":""},null,null,{"$f":"入力シート!C20&\"\"","v":""},null,{"$f":"データチェック!H4","v":""},{"$f":"データチェック!H5","v":""},{"$f":"データチェック!H6","v":""},{"$f":"データチェック!H7","v":""},{"$f":"データチェック!H8","v":""},{"$f":"データチェック!H9","v":""},{"$f":"データチェック!H10","v":""},{"$f":"データチェック!H11","v":""},{"$f":"データチェック!H12","v":""},{"$f":"入力シート!C25&\"\"","v":""},{"$f":"入力シート!C26&\"\"","v":""},{"$f":"入力シート!C27&\"\"","v":""},{"$f":"入力シート!C28&\"\"","v":""},null,null,null,null,{"$f":"データチェック!H14","v":""}]

{"sheet":"リストシート","index":3,"n_rows":94,"n_cols":30,"rows_kept":94,"cut":false,"hidden":false,"merged":[]}
["性別","生年","ID","職業","ID","主要競技","ID","対象","ID","区分","ID","資格","ID","時間帯","可能地域","報酬","その他資格","ID","情報同意",null,"都道府県",null,"登録認定要件","ID",null,"サポート分野","ID",null,"サポートテーマ","ID"]
[]
["男性",1925,1,"会社員",1,"陸上競技",1,"幼児",1,"競技スポーツ",1,"〈日本体育協会公認〉スポーツドクター",1,"全日","居住地","謝金を希望する","あん摩マッサージ指圧師",1,"同意する",null,"北海道",null,"県スポーツ協会が推薦した者","県スポーツ協会が推薦した者",null,"生徒の健康管理と競技能力向上の援助、スポーツ外傷・傷害に対する予防、診断治療等を行う「スポーツドクター」の講演や指導",1,null,"「けが」関連",1]
["女性",1926,2,"自営業",2,"競泳",2,"児童",2,"生涯スポーツ",2,"〈日本体育協会公認〉アスレティックトレーナー",2,"午前","居住地及び居住地隣接市町","ボランティア","医師",2,null,null,"青森県",null,"県教委が推薦した者","県教委が推薦した者",null,"生徒の傷害予防、救急処置、コンディショニングにあたるとともに、リハビリテーションにあたる「アスレティックトレーナー」の講演や指導",2,null,"「フィジカル」関連",2]
[null,1927,3,"専門職",3,"飛込",3,"中学生",3,"レジャー・レクリエーション",3,"〈日本体育協会公認〉スポーツ栄養士",3,"午後","その他","依頼者と交渉する","ウォーキング指導員",3,null,null,"岩手県",null,"静岡県医師会等の推薦","静岡県医師会等の推薦",null,"スポーツ活動における、栄養・食事に関する専門的なサポートを担うための、高い実践能力を有する「スポーツ栄養士」の講演や指導",3,null,"「メンタル」関連",3]
[null,1928,4,"公務員",4,"水球",4,"高校生",4,"講習会講師",4,"〈日本体育協会公認〉スポーツデンティスト",4,"夜間",null,null,"栄養士",4,null,null,"宮城県",null,"スポーツドクター協議会の推薦","スポーツドクター協議会の推薦",null,"生徒の健康管理、歯科口腔領域のスポーツ障害、スポーツ外傷の診断、治療、予防等にあたる「スポーツデンティスト」の講演や指導",4,null,"「部活動指導・運営」関連",4]
[null,1929,5,"学生",5,"アーティスティックスイミング",5,"一般",5,"学校部活動",5,"〈日本体育協会公認〉スポーツプログラマー",5,"午前,午後",null,null,"看護師",5,null,null,"秋田県",null,"アスレティックトレーナー協議会の推薦","アスレティックトレーナー協議会の推薦",null,"薬の正しい使い方、薬に関する健康教育、ドーピングに関する情報提供、サプリメント等の相談にあたる「スポーツファーマシスト」の講演や指導",5,null,"「体験談」関連",5]
[null,1930,6,"主婦(夫)",6,"オープンウォータースイミング",6,"高齢者",6,"審判員",6,"〈日本体育協会公認〉競技別指導員",6,"午後,夜間",null,null,"管理栄養士",6,null,null,"山形県",null,"日本スポーツ協会等の公認指導者","日本スポーツ協会等の公認指導者",null,"女性特有の月経異常等に対応し、女子部員が競技者として息長く活躍できる環境づくりを目指す「やまとなでしこプロジェクト」の講演や指導",6]
[null,1931,7,"教員",10,"テニス",7,"障がい者",7,"学校体育",7,"〈日本体育協会公認〉競技別上級指導員",7,"午前,夜間",null,null,"救急救命士",7,null,null,"福島県",null,"医師免許等保有者","医師免許等保有者",null,"メンタルトレーニングの原理と方法、スポーツ健康心理学、発育発達学、健康体力マネジメント等の研修者である「大学教授等」の講演や指導",7]
[null,1932,8,"団体職員",11,"ソフトテニス",8,null,null,"スポーツ医・科学",8,"〈日本体育協会公認〉競技別コーチ",8,null,null,null,"救急法救急員",8,null,null,"茨城県"]
[null,1933,9,"ﾊﾟｰﾄ・ｱﾙﾊﾞｲﾄ",7,"バドミントン",9,null,null,"スポーツマネージャー",9,"〈日本体育協会公認〉競技別上級コーチ",9,null,null,null,"きゅう師",9,null,null,"栃木県"]
[null,1934,10,"無職",8,"体操",10,null,null,"その他",10,"〈日本体育協会公認〉競技別教師",10,null,null,null,"教員免許",10,null,null,"群馬県"]
[null,1935,11,"その他",9,"新体操",11,null,null,null,null,"〈日本体育協会公認〉競技別上級教師",11,null,null,null,"競技審判資格",11,null,null,"埼玉県"]
[null,1936,12,null,null,"トランポリン",12,null,null,null,null,"〈日本体育協会公認〉ジュニアスポーツ指導員",12,null,null,null,"健康運動実践指導者",12,null,null,"千葉県"]
[null,1937,13,null,null,"卓球",13,null,null,null,null,"〈日本体育協会公認〉クラブマネジャー",13,null,null,null,"健康運動指導士",13,null,null,"東京都"]
[null,1938,14,null,null,"バレーボール",14,null,null,null,null,"〈日本体育協会公認〉アシスタントマネジャー",14,null,null,null,"健康スポーツ医",14,null,null,"神奈川県"]
[null,1939,15,null,null,"バスケットボール",15,null,null,null,null,"〈日本体育協会公認〉スポーツリーダー(スポーツ少年団認定員)",15,null,null,null,"高齢者体力つくり支援士",15,null,null,"新潟県"]
[null,1940,16,null,null,"サッカー",16,null,null,null,null,"スポーツファーマシスト",16,null,null,null,"柔道整復師",16,null,null,"富山県"]
[null,1941,17,null,null,"ハンドボール",17,null,null,null,null,"医師",17,null,null,null,"障害者スポーツ指導員",17,null,null,"石川県"]
[null,1942,18,null,null,"軟式野球",18,null,null,null,null,"看護師",18,null,null,null,"障害者スポーツ指導員スポーツコーチ",18,null,null,"福井県"]
[null,1943,19,null,null,"硬式野球",19,null,null,null,null,"管理栄養士",19,null,null,null,"スポーツ系大学教授等",19,null,null,"山梨県"]
[null,1944,20,null,null,"ソフトボール",20,null,null,null,null,"栄養士",20,null,null,null,"スポーツトレーナー",20,null,null,"長野県"]
[null,1945,21,null,null,"ラクビーフットボール",21,null,null,null,null,"スポーツ系大学教授等",21,null,null,null,"トレーニング指導士",21,null,null,"岐阜県"]
[null,1946,22,null,null,"剣道",22,null,null,null,null,"救急救命士",22,null,null,null,"はり師",22,null,null,"静岡県"]
[null,1947,23,null,null,"柔道",23,null,null,null,null,"救急法救急員",23,null,null,null,"ファーマシスト",23,null,null,"愛知県"]
[null,1948,24,null,null,"相撲",24,null,null,null,null,"あん摩マッサージ指圧師",24,null,null,null,"フィットネストレーナー",24,null,null,"三重県"]
[null,1949,25,null,null,"弓道",25,null,null,null,null,"はり師",25,null,null,null,"理学療法士",25,null,null,"滋賀県"]
[null,1950,26,null,null,"空手道",26,null,null,null,null,"きゅう師",26,null,null,null,"臨床心理士",26,null,null,"京都府"]
[null,1951,27,null,null,"山岳",27,null,null,null,null,"柔道整復師",27,null,null,null,"その他",27,null,null,"大阪府"]
[null,1952,28,null,null,"ボート",28,null,null,null,null,"理学療法士",28,null,null,null,null,null,null,null,"兵庫県"]
[null,1953,29,null,null,"カヌー",29,null,null,null,null,"臨床心理士",29,null,null,null,null,null,null,null,"奈良県"]
[null,1954,30,null,null,"セーリング",30,null,null,null,null,"スポーツトレーナー",30,null,null,null,null,null,null,null,"和歌山県"]
[null,1955,31,null,null,"ウェイトリフティング",31,null,null,null,null,"健康運動指導士",31,null,null,null,null,null,null,null,"鳥取県"]
[null,1956,32,null,null,"フェンシング",32,null,null,null,null,"健康運動実践指導者",32,null,null,null,null,null,null,null,"島根県"]
[null,1957,33,null,null,"レスリング",33,null,null,null,null,"健康スポーツ医",33,null,null,null,null,null,null,null,"岡山県"]
[null,1958,34,null,null,"なぎなた",34,null,null,null,null,"フィットネストレーナー",34,null,null,null,null,null,null,null,"広島県"]
[null,1959,35,null,null,"自転車",35,null,null,null,null,"トレーニング指導士",35,null,null,null,null,null,null,null,"山口県"]
[null,1960,36,null,null,"ホッケー",36,null,null,null,null,"ウォーキング指導員",36,null,null,null,null,null,null,null,"徳島県"]
[null,1961,37,null,null,"ボクシング",37,null,null,null,null,"高齢者体力つくり支援士",37,null,null,null,null,null,null,null,"香川県"]
[null,1962,38,null,null,"アーチェリー",38,null,null,null,null,"障害者スポーツ指導員スポーツコーチ",38,null,null,null,null,null,null,null,"愛媛県"]
[null,1963,39,null,null,"スケート",39,null,null,null,null,"障害者スポーツ指導員",39,null,null,null,null,null,null,null,"高知県"]
[null,1964,40,null,null,"スキー",40,null,null,null,null,"スポーツ推進員",40,null,null,null,null,null,null,null,"福岡県"]
[null,1965,41,null,null,"アイスホッケー",41,null,null,null,null,"民間スポーツインストラクター",41,null,null,null,null,null,null,null,"佐賀県"]
[null,1966,42,null,null,"少林寺拳法",42,null,null,null,null,"競技別指導資格保持者",42,null,null,null,null,null,null,null,"長崎県"]
[null,1967,43,null,null,"ボウリング",43,null,null,null,null,"競技別段位資格所持者",43,null,null,null,null,null,null,null,"熊本県"]
[null,1968,44,null,null,"馬術",44,null,null,null,null,"教員免許",44,null,null,null,null,null,null,null,"大分県"]
[null,1969,45,null,null,"ゴルフ",45,null,null,null,null,"競技審判資格",45,null,null,null,null,null,null,null,"宮崎県"]
[null,1970,46,null,null,"クレー射撃",46,null,null,null,null,"国際大会、日本選手権等出場経験者",46,null,null,null,null,null,null,null,"鹿児島県"]
[null,1971,47,null,null,"ライフル射撃",47,null,null,null,null,"研究者",47,null,null,null,null,null,null,null,"沖縄県"]
[null,1972,48,null,null,"銃剣道",48,null,null,null,null,"スポーツメンタルトレーニング指導士",48]
[null,1973,49,null,null,"トライスロン",49,null,null,null,null,"その他",49]
[null,1974,50,null,null,"綱引",50]
[null,1975,51,null,null,"ゲートボール",51]
[null,1976,52,null,null,"パワーリフティング",52]
[null,1977,53,null,null,"グラウンド・ゴルフ",53]
[null,1978,54,null,null,"武術太極拳",54]
[null,1979,55,null,null,"ダンススポーツ",55]
[null,1980,56,null,null,"バウンドテニス",56]
[null,1981,57,null,null,"キックボクシング",57]
[null,1982,58,null,null,"ヨガ",58]
[null,1983,59,null,null,"スポーツクライミング",59]
[null,1984,60,null,null,"エアロビック",60]
[null,1985,61,null,null,"ジュニアスポーツ",61]
[null,1986,62,null,null,"スポーツプログラマー",62]
[null,1987,63,null,null,"アシスタントマネージャー",63]
[null,1988,64,null,null,"近代五種",64]
[null,1989,65,null,null,"アメリカンフットボール",65]
[null,1990,66,null,null,"チアリーディング",66]
[null,1991,67]
[null,1992,68]
[null,1993,69]
[null,1994,70]
[null,1995,71]
[null,1996,72]
[null,1997,73]
[null,1998,74]
[null,1999,75]
[null,2000,76]
[null,2001,77]
[null,2002,78]
[null,2003,79]
[null,2004,80]
[null,2005,81]
[null,2006,82]
[null,2007,83]
[null,2008,84]
[null,2009,85]
[null,2010,86]
[null,2011,87]
[null,2012,88]
[null,2013,89]
[null,2014,90]
[null,2015,91]
[null,2016,92]

{"sheet":"データチェック","index":4,"n_rows":15,"n_cols":8,"rows_kept":15,"cut":false,"hidden":false,"merged":[[0,2,0,5]]}
[null,null,"チェックボックスの判定",null,null,null,null,"インポートシートへの反映"]
[]
["指導可能日時",null,"全日","午前","午後","夜間"]
[null,"月",false,false,false,false,null,{"$f":"IF(C4=TRUE,\"全日;\",\"\")&IF(D4=TRUE,\"午前;\",\"\")&IF(E4=TRUE,\"午後;\",\"\")&IF(F4=TRUE,\"夜間;\",\"\")","v":""}]
[null,"火",false,false,false,false,null,{"$f":"IF(C5=TRUE,\"全日;\",\"\")&IF(D5=TRUE,\"午前;\",\"\")&IF(E5=TRUE,\"午後;\",\"\")&IF(F5=TRUE,\"夜間;\",\"\")","v":""}]
[null,"水",false,false,false,false,null,{"$f":"IF(C6=TRUE,\"全日;\",\"\")&IF(D6=TRUE,\"午前;\",\"\")&IF(E6=TRUE,\"午後;\",\"\")&IF(F6=TRUE,\"夜間;\",\"\")","v":""}]
[null,"木",false,false,false,false,null,""]
[null,"金",false,false,false,false,null,""]
[null,"土",false,false,false,false,null,""]
[null,"日",false,false,false,false,null,""]
[null,"祝",false,false,false,false,null,""]
[null,"毎日",false,false,false,false,null,""]
[]
["情報公開","同意する",false,null,null,null,null,{"$f":"IF(C14=TRUE,\"同意する\",IF(C15=TRUE,\"同意しない\",\"\"))","v":""}]
[null,"同意しない",false]